bitfinex/quotes_BTCUSD_20240611
["timestamp","ask_amount","ask_price","bid_price","bid_amount"]
[1718089366819,0.22,67643.0,67631.0,0.04907383]
[1718089367038,0.02,67636.0,67632.0,0.01740307]
[1718089367299,0.7608,67643.0,67633.0,0.19957965]
[1718089367300,0.02,67634.0,67633.0,0.19957965]
[1718089367509,0.023,67634.0,67633.0,0.19957965]
[1718089367935,0.00693063,67634.0,67633.0,0.19957965]
[1718089368144,0.02993063,67634.0,67633.0,0.19957965]
[1718089368728,0.02993063,67634.0,67633.0,0.29957965]
[1718089369087,0.023,67634.0,67633.0,0.29957965]
[1718089369292,0.023,67635.0,67633.0,0.29957965]
[1718089369674,0.023,67635.0,67634.0,0.13138999]
[1718089369873,0.043,67638.0,67634.0,0.27570992]
[1718089370103,0.043,67638.0,67635.0,0.14431993]
[1718089370310,0.023,67638.0,67636.0,0.1]
[1718089370515,0.243,67638.0,67637.0,0.03349704]
[1718089370738,0.22,67637.0,67636.0,0.1]
[1718089370954,0.22,67637.0,67630.0,0.03233153]
[1718089370955,0.02,67633.0,67630.0,0.03233153]
[1718089371176,0.023,67632.0,67630.0,0.17665146]
[1718089371400,0.023,67632.0,67631.0,0.12766515]
[1718089371659,0.043,67634.0,67631.0,0.12766515]
[1718089372772,0.22,67633.0,67631.0,0.12766515]
[1718089372981,0.023,67632.0,67631.0,0.12766515]
[1718089373400,0.023,67632.0,67606.0,0.04392088]
[1718089373674,0.07215996,67626.0,67594.0,0.13176264]
[1718089373882,0.023,67625.0,67598.0,0.07623977]
[1718089374095,0.023,67625.0,67599.0,0.04665977]
[1718089374308,0.023,67625.0,67597.0,0.6]
[1718089374309,0.07215996,67619.0,67598.0,0.6132265]
[1718089374527,0.07215996,67619.0,67599.0,0.04181029]
[1718089374983,0.07215996,67619.0,67597.0,0.54513057]
[1718089375197,0.12197775,67619.0,67598.0,0.03260977]
[1718089375425,0.12197775,67619.0,67598.0,0.84526977]
[1718089375647,0.07215996,67619.0,67599.0,0.13260977]
[1718089375860,0.00672925,67618.0,67599.0,1.527725]
[1718089376069,0.07215996,67619.0,67599.0,0.489663]
[1718089376503,0.12201356,67619.0,67599.0,0.1]
[1718089376719,0.12201356,67619.0,67598.0,0.1]
[1718089376928,0.12201356,67619.0,67599.0,0.05879708]
[1718089377142,0.12201356,67619.0,67599.0,0.02958]
[1718089377366,0.12201356,67619.0,67599.0,0.856523]
[1718089377590,0.0498536,67619.0,67599.0,0.02958]
[1718089378061,0.07215996,67611.0,67599.0,0.02958]
[1718089378294,0.07215996,67618.0,67599.0,0.02958]
[1718089378774,0.07215996,67618.0,67598.0,0.02958]
[1718089378995,0.12157296,67618.0,67598.0,0.02958]
[1718089379213,0.12157296,67618.0,67597.0,0.04513057]
[1718089379214,0.07215996,67618.0,67599.0,0.03874829]
[1718089379431,0.07215996,67618.0,67597.0,0.04513057]
[1718089379432,0.07215996,67611.0,67597.0,0.04513057]
[1718089379641,0.07215996,67611.0,67598.0,0.12479664]
[1718089379850,0.07215996,67611.0,67599.0,0.12310564]
[1718089380059,0.07215996,67611.0,67599.0,0.205345]
[1718089380299,0.07215996,67611.0,67599.0,0.1]
[1718089380546,0.07215996,67601.0,67599.0,0.1]
[1718089380779,0.07215996,67601.0,67596.0,0.11008249]
[1718089381260,0.006705,67600.0,67593.0,0.00856]
[1718089381478,0.07215996,67594.0,67593.0,0.00856]
[1718089381702,0.07215996,67594.0,67593.0,0.02674254]
[1718089381938,0.07883743,67594.0,67593.0,0.02674254]
[1718089382178,0.07883743,67594.0,67593.0,0.05365473]
[1718089382627,0.07883743,67594.0,67593.0,0.00856]
[1718089383584,0.07215996,67594.0,67593.0,0.00856]
[1718089388146,0.07215996,67594.0,67593.0,0.09084608]
[1718089388561,0.07215996,67594.0,67593.0,0.19084608]
[1718089389486,0.07215996,67594.0,67593.0,0.20000596]
[1718089389949,0.07215996,67594.0,67593.0,0.20228001]
[1718089391703,0.07215996,67601.0,67593.0,0.34659994]
[1718089391861,0.07215996,67594.0,67593.0,0.20228001]
[1718089392219,0.07215996,67594.0,67593.0,0.19312013]
[1718089392561,0.07215996,67594.0,67593.0,0.20086259]
[1718089393190,0.07215996,67601.0,67593.0,0.34518252]
[1718089393401,0.07215996,67601.0,67594.0,0.23662252]
[1718089393604,0.07215996,67601.0,67595.0,0.19230259]
[1718089393758,0.07215996,67601.0,67596.0,0.23662252]
[1718089394000,0.07215996,67601.0,67597.0,0.19230259]
[1718089394159,0.07215996,67601.0,67598.0,0.09230259]
[1718089394367,0.07215996,67601.0,67599.0,0.09230259]
[1718089394595,0.07215996,67601.0,67600.0,0.09211466]
[1718089396001,0.07215996,67601.0,67600.0,0.08250705]
[1718089396264,0.07215996,67601.0,67600.0,0.091533]
[1718089398699,0.07215996,67611.0,67600.0,0.23585293]
[1718089398949,0.07215996,67601.0,67600.0,0.14431993]
[1718089399206,0.07215996,67601.0,67600.0,0.33709195]
[1718089401037,0.07215996,67611.0,67600.0,0.33709195]
[1718089401258,0.07215996,67611.0,67601.0,0.33709195]
[1718089401480,0.07215996,67611.0,67602.0,0.11588282]
[1718089401736,0.04926342,67612.0,67603.0,0.36020275]
[1718089401968,0.54395996,67626.0,67608.0,0.14431993]
[1718089401969,0.07215996,67626.0,67608.0,0.14431993]
[1718089402197,0.04958618,67616.0,67609.0,0.21265934]
[1718089402429,0.07215996,67619.0,67609.0,0.21265934]
[1718089402430,0.07215996,67619.0,67610.0,0.25106493]
[1718089402662,0.07215996,67626.0,67611.0,0.206745]
[1718089402901,0.07215996,67626.0,67612.0,0.14431993]
[1718089403161,0.07215996,67626.0,67613.0,0.1231108]
[1718089403412,0.11181978,67626.0,67614.0,0.25106493]
[1718089403629,0.06215996,67626.0,67615.0,0.20779428]
[1718089403858,0.06215996,67626.0,67616.0,0.25106493]
[1718089404082,0.04933239,67628.0,67617.0,0.24431993]
[1718089404318,0.04933239,67628.0,67618.0,0.106745]
[1718089404558,0.04933239,67628.0,67620.0,0.14431993]
[1718089404782,0.04194239,67628.0,67621.0,0.206745]
[1718089405014,0.00894239,67628.0,67622.0,0.25106493]
[1718089405229,0.07310596,67633.0,67623.0,0.1]
[1718089405500,0.07310596,67633.0,67624.0,0.16743073]
[1718089405711,0.07310596,67633.0,67625.0,0.206745]
[1718089405957,0.07310596,67633.0,67626.0,0.25106493]
[1718089406165,0.07310596,67633.0,67627.0,0.1836342]
[1718089406380,0.07310596,67633.0,67628.0,0.14431993]
[1718089406595,0.07310596,67633.0,67629.0,0.1836342]
[1718089406813,0.4895,67632.0,67630.0,0.0836342]
[1718089407035,0.4895,67632.0,67631.0,0.0836342]
[1718089407036,0.49627229,67632.0,67631.0,0.0836342]
[1718089408105,0.51627229,67632.0,67631.0,0.0836342]
[1718089408805,0.49627229,67632.0,67631.0,0.0836342]
[1718089409956,0.00677229,67632.0,67631.0,0.0836342]
[1718089410884,0.00677229,67632.0,67623.0,0.08938206]
[1718089411117,0.00677229,67632.0,67622.0,0.1]
[1718089411118,0.00677229,67632.0,67624.0,0.08938206]
[1718089411354,0.07215996,67625.0,67623.0,0.882906]
[1718089411585,0.07215996,67625.0,67624.0,0.18918745]
[1718089412224,0.07890479,67625.0,67624.0,1.12185338]
[1718089412446,0.07215996,67625.0,67624.0,1.16807338]
[1718089412664,0.07215996,67625.0,67624.0,1.16253938]
[1718089412874,0.07215996,67625.0,67624.0,0.79004738]
[1718089413338,0.07215996,67625.0,67624.0,0.33350738]
[1718089413792,0.07892158,67625.0,67624.0,0.47880738]
[1718089414161,0.07215996,67625.0,67624.0,0.47880738]
[1718089414981,0.07215996,67625.0,67624.0,0.33350738]
[1718089415191,0.07891843,67625.0,67624.0,0.33350738]
[1718089415906,0.07891843,67625.0,67624.0,0.18918745]
[1718089416832,0.00675847,67625.0,67624.0,0.33350738]
[1718089417257,0.07215996,67626.0,67624.0,0.33350738]
[1718089417471,0.07215996,67626.0,67625.0,0.33350738]
[1718089417910,0.07215996,67626.0,67625.0,0.73767238]
[1718089418497,0.07215996,67626.0,67625.0,1.22844438]
[1718089419652,0.07215996,67640.0,67625.0,1.13925693]
[1718089419875,0.07215996,67640.0,67626.0,0.09249473]
[1718089420084,0.07215996,67640.0,67627.0,0.14431993]
[1718089420296,0.07215996,67640.0,67628.0,0.1]
[1718089420510,0.07215996,67640.0,67629.0,0.23681466]
[1718089420737,0.07215996,67640.0,67630.0,0.19249473]
[1718089420964,0.07215996,67640.0,67631.0,0.23681466]
[1718089421199,0.07215996,67640.0,67632.0,0.19249473]
[1718089421419,0.07215996,67640.0,67632.0,0.33681466]
[1718089424645,0.000946,67633.0,67632.0,0.33681466]
[1718089424798,0.07215996,67659.0,67632.0,0.33681466]
[1718089424799,0.07215996,67641.0,67632.0,0.33681466]
[1718089425152,0.07215996,67641.0,67633.0,0.25991401]
[1718089425372,0.3062,67653.0,67634.0,0.21559408]
[1718089425580,0.3062,67653.0,67635.0,0.25991401]
[1718089425788,0.3062,67653.0,67636.0,0.10373567]
[1718089425999,0.3062,67653.0,67637.0,0.25991401]
[1718089426223,0.4528,67657.0,67638.0,0.21932963]
[1718089426438,0.4528,67657.0,67639.0,0.25991401]
[1718089426660,0.4528,67657.0,67640.0,0.21952965]
[1718089426874,0.4528,67657.0,67641.0,0.25991401]
[1718089427127,0.07215996,67659.0,67642.0,0.21952953]
[1718089427344,0.07215996,67652.0,67647.0,0.14431993]
[1718089427577,0.07215996,67652.0,67648.0,0.1]
[1718089427791,0.07215996,67652.0,67649.0,0.25991401]
[1718089427993,0.07215996,67652.0,67650.0,0.11559408]
[1718089428209,0.07215996,67652.0,67651.0,0.33681466]
[1718089428671,0.07215996,67658.0,67651.0,1.87930366]
[1718089428899,0.07215996,67658.0,67652.0,0.09249473]
[1718089429127,0.07215996,67658.0,67653.0,0.14431993]
[1718089429354,0.07215996,67658.0,67654.0,0.19249473]
[1718089429617,0.07215996,67658.0,67655.0,0.23681466]
[1718089429868,0.000946,67663.0,67656.0,0.19249473]
[1718089430083,0.000946,67663.0,67657.0,0.14431993]
[1718089430319,0.000946,67663.0,67656.0,1.35529173]
[1718089430320,0.000946,67663.0,67659.0,0.14431993]
[1718089430544,0.000946,67663.0,67660.0,0.19321381]
[1718089430749,0.000946,67663.0,67661.0,0.23753374]
[1718089430983,0.000946,67663.0,67662.0,0.19321381]
[1718089431201,0.000946,67663.0,67662.0,0.33753374]
[1718089435057,0.009427,67668.0,67662.0,0.33753374]
[1718089435280,0.07215996,67667.0,67663.0,0.14431993]
[1718089435454,0.07215996,67667.0,67664.0,0.19321381]
[1718089435650,0.07215996,67667.0,67665.0,0.09321381]
[1718089435880,0.07215996,67667.0,67665.0,0.22030381]
[1718089436092,0.07215996,67667.0,67666.0,0.19321381]
[1718089437192,0.07215996,67667.0,67666.0,0.09321381]
[1718089437890,0.17215996,67667.0,67666.0,0.09321381]
[1718089438122,0.17215996,67667.0,67666.0,0.09490833]
[1718089438576,0.39215996,67667.0,67666.0,0.09490833]
[1718089438786,0.17215996,67667.0,67666.0,0.09490833]
[1718089440496,0.009427,67668.0,67666.0,0.09490833]
[1718089440497,0.009427,67668.0,67666.0,0.23922826]
[1718089440717,0.00699746,67668.0,67667.0,0.33922826]
[1718089440919,0.009427,67669.0,67667.0,0.23922826]
[1718089441149,0.009427,67669.0,67668.0,0.19490833]
[1718089441384,0.009427,67669.0,67668.0,0.33922826]
[1718089442332,0.00943801,67677.0,67668.0,0.33922826]
[1718089442333,0.00943801,67677.0,67668.0,1.59820426]
[1718089442558,0.0034,67670.0,67669.0,0.23922826]
[1718089442787,0.0034,67670.0,67669.0,1.26282326]
[1718089442987,0.0034,67670.0,67669.0,1.36282326]
[1718089443625,0.0034,67670.0,67669.0,1.31011926]
[1718089447762,0.0034,67670.0,67669.0,1.33969926]
[1718089448022,0.0034,67670.0,67669.0,1.33320374]
[1718089448242,0.0034,67670.0,67669.0,1.36275374]
[1718089448461,0.0034,67670.0,67669.0,1.38575374]
[1718089449787,0.0034,67670.0,67669.0,1.39017441]
[1718089450456,0.0034,67670.0,67669.0,1.41673852]
[1718089451232,0.0034,67670.0,67669.0,1.49508324]
[1718089452356,0.0034,67670.0,67669.0,1.52923948]
[1718089452573,0.0034,67670.0,67669.0,0.55834848]
[1718089453197,0.0034,67670.0,67669.0,0.72807278]
[1718089453403,0.0034,67670.0,67669.0,5.14702278]
[1718089453614,0.0034,67670.0,67669.0,5.02040378]
[1718089453827,0.0034,67670.0,67669.0,4.79117778]
[1718089454274,0.0034,67670.0,67669.0,3.89652654]
[1718089455632,0.0034,67670.0,67669.0,3.65962654]
[1718089455860,0.0034,67670.0,67669.0,0.56120768]
[1718089456083,0.0034,67670.0,67669.0,0.45406152]
[1718089456292,0.0034,67670.0,67669.0,1.66296252]
[1718089457014,0.0034,67670.0,67669.0,1.77570652]
[1718089458069,0.0034,67670.0,67669.0,1.17369252]
[1718089458277,0.0034,67670.0,67669.0,1.14414252]
[1718089459925,0.0034,67670.0,67669.0,0.39329752]
[1718089460134,0.0034,67670.0,67669.0,3.74154652]
[1718089460349,0.0034,67670.0,67669.0,0.53165768]
[1718089460594,0.0034,67670.0,67669.0,3.26362152]
[1718089460802,0.0034,67670.0,67669.0,0.39329752]
[1718089460999,0.0034,67670.0,67669.0,2.47992268]
[1718089461386,0.0034,67670.0,67669.0,2.99011268]
[1718089461796,0.0034,67670.0,67669.0,2.90891068]
[1718089461996,0.0034,67670.0,67669.0,2.85444468]
[1718089462191,0.0034,67670.0,67669.0,2.82313832]
[1718089462771,0.0034,67670.0,67669.0,2.69817732]
[1718089464043,0.0034,67670.0,67669.0,0.54106832]
[1718089464261,0.0034,67670.0,67669.0,3.87365616]
[1718089464484,0.0034,67670.0,67669.0,0.40270816]
[1718089464697,0.0034,67670.0,67669.0,3.89718916]
[1718089464904,0.00943801,67677.0,67669.0,0.40270816]
[1718089465108,0.0022,67671.0,67670.0,0.23182412]
[1718089465326,0.07215996,67690.0,67670.0,0.23182412]
[1718089465327,0.009427,67695.0,67671.0,0.07834472]
[1718089465574,0.28902314,67691.0,67677.0,0.005]
[1718089465804,0.277973,67691.0,67678.0,0.1630122]
[1718089466010,0.00516,67692.0,67679.0,0.33332412]
[1718089466226,0.009427,67695.0,67689.0,0.14431993]
[1718089466436,0.00083333,67696.0,67690.0,0.1]
[1718089466644,0.00083333,67696.0,67691.0,0.27614405]
[1718089466875,0.00083333,67696.0,67692.0,0.23182412]
[1718089467101,0.00083333,67696.0,67693.0,0.27614405]
[1718089467328,0.00083333,67696.0,67694.0,0.1]
[1718089467558,0.00083333,67696.0,67695.0,0.27614405]
[1718089467775,0.00083333,67696.0,67695.0,0.37614405]
[1718089468435,0.009427,67697.0,67695.0,2.41530105]
[1718089468436,0.00297032,67697.0,67695.0,2.41530105]
[1718089468657,0.00297032,67697.0,67696.0,0.1]
[1718089468875,0.00297032,67697.0,67696.0,1.65926205]
[1718089469093,0.18125732,67700.0,67696.0,1.49750805]
[1718089469301,0.18125732,67700.0,67697.0,0.27614405]
[1718089469509,0.18125732,67700.0,67698.0,0.20873964]
[1718089469736,0.18125732,67700.0,67699.0,0.14431993]
[1718089469937,0.18125732,67700.0,67699.0,0.90352457]
[1718089470152,0.18125732,67700.0,67699.0,0.88872057]
[1718089470578,0.18125732,67700.0,67699.0,0.79260057]
[1718089470789,0.18125732,67700.0,67699.0,0.35305957]
[1718089471222,0.18125732,67700.0,67699.0,0.99977857]
[1718089471428,0.18125732,67700.0,67699.0,0.1440985]
[1718089471639,0.18125732,67700.0,67684.0,0.0439625]
[1718089471862,0.18125732,67700.0,67699.0,0.1656]
[1718089472079,0.18125732,67700.0,67685.0,3.39251393]
[1718089472319,0.18125732,67700.0,67686.0,3.23152286]
[1718089472526,0.18125732,67700.0,67687.0,0.16739779]
[1718089472725,0.18125732,67700.0,67688.0,0.02307786]
[1718089472933,0.18125732,67700.0,67689.0,0.14431993]
[1718089473153,0.18125732,67700.0,67690.0,0.02307786]
[1718089473359,0.18125732,67700.0,67691.0,0.14431993]
[1718089473570,0.18125732,67700.0,67692.0,0.12307786]
[1718089473817,0.15984504,67700.0,67693.0,0.16739779]
[1718089474038,0.15984504,67700.0,67694.0,0.12307786]
[1718089474257,0.15984504,67700.0,67695.0,0.16739779]
[1718089474493,0.11284504,67700.0,67696.0,0.12307786]
[1718089474771,0.11284504,67700.0,67697.0,0.14431993]
[1718089475028,0.08542504,67700.0,67698.0,0.12307786]
[1718089475281,0.01653504,67700.0,67699.0,0.17181357]
[1718089475747,0.4875,67715.0,67699.0,3.88308479]
[1718089475980,0.4875,67715.0,67700.0,0.12471843]
[1718089476204,0.4875,67715.0,67701.0,0.22266465]
[1718089476406,0.4875,67715.0,67702.0,0.12473341]
[1718089476618,0.4875,67715.0,67703.0,0.12307244]
[1718089476793,0.4875,67715.0,67704.0,0.16739237]
[1718089476999,0.4825,67715.0,67705.0,0.02307244]
[1718089477220,0.07215996,67711.0,67705.0,0.02307244]
[1718089477652,0.07215996,67711.0,67706.0,0.02307244]
[1718089477869,0.07215996,67711.0,67700.0,0.0496808]
[1718089477870,0.12,67709.0,67707.0,0.02307244]
[1718089478079,0.316,67708.0,67698.0,0.02692207]
[1718089478331,0.316,67708.0,67699.0,0.02307509]
[1718089478782,0.316,67708.0,67700.0,0.02307509]
[1718089478783,0.07215996,67703.0,67700.0,0.02307509]
[1718089478996,0.316,67708.0,67694.0,0.1]
[1718089479214,0.316,67708.0,67701.0,0.900559]
[1718089479426,0.316,67708.0,67702.0,0.1]
[1718089479675,0.316,67708.0,67696.0,2.124062]
[1718089479923,0.316,67708.0,67703.0,0.591325]
[1718089480113,0.316,67708.0,67697.0,0.12602844]
[1718089480114,0.316,67708.0,67704.0,0.26739597]
[1718089480313,0.4525,67714.0,67705.0,0.02828937]
[1718089480518,0.4525,67714.0,67706.0,0.16739402]
[1718089480702,0.4525,67714.0,67707.0,0.1]
[1718089480936,0.07215996,67713.0,67708.0,0.16739402]
[1718089481180,0.07215996,67713.0,67709.0,0.12307409]
[1718089481395,0.4525,67714.0,67710.0,0.11152546]
[1718089481613,0.4525,67714.0,67711.0,0.21152546]
[1718089481828,0.4525,67714.0,67712.0,0.08845137]
[1718089482047,0.4525,67714.0,67713.0,0.08845137]
[1718089482314,0.00017827,67719.0,67713.0,1.2059093]
[1718089482569,0.00017827,67719.0,67714.0,0.3327713]
[1718089482973,0.00017827,67719.0,67715.0,0.11152305]
[1718089483177,0.31957827,67719.0,67716.0,0.21152305]
[1718089483378,0.31957827,67719.0,67717.0,0.11152305]
[1718089483589,0.31957827,67719.0,67718.0,0.21152305]
[1718089483806,0.31957827,67719.0,67718.0,0.18845137]
[1718089484046,0.4602,67724.0,67718.0,1.13402187]
[1718089484268,0.41016331,67724.0,67719.0,0.23194387]
[1718089484492,0.41016331,67724.0,67720.0,0.21069295]
[1718089484711,0.41016331,67724.0,67721.0,0.11069295]
[1718089484918,0.41016331,67724.0,67722.0,0.1]
[1718089485134,0.1,67729.0,67722.0,0.1]
[1718089485135,0.1,67729.0,67723.0,0.23194387]
[1718089485390,0.1,67729.0,67722.0,1.061001]
[1718089485621,0.1,67729.0,67711.0,0.04403637]
[1718089485837,0.1,67729.0,67713.0,0.16738935]
[1718089486080,0.1,67729.0,67714.0,0.02306942]
[1718089486337,0.07215996,67722.0,67715.0,0.14431993]
[1718089486560,0.1,67729.0,67716.0,0.02306942]
[1718089486775,0.1,67729.0,67716.0,0.16738935]
[1718089486987,0.1,67729.0,67717.0,1.48350166]
[1718089487220,0.1,67729.0,67718.0,0.02294666]
[1718089487426,0.4777,67728.0,67718.0,1.30712866]
[1718089487643,0.4777,67728.0,67719.0,0.1502256]
[1718089487909,0.4777,67728.0,67720.0,0.1]
[1718089488159,0.4777,67728.0,67721.0,0.00590549]
[1718089488379,0.4777,67728.0,67721.0,2.50175549]
[1718089488616,0.4777,67728.0,67722.0,0.1]
[1718089488858,0.4787,67728.0,67723.0,0.00590552]
[1718089489357,0.4777,67728.0,67723.0,0.00590552]
[1718089489608,0.4777,67728.0,67724.0,1.037152]
[1718089489840,0.4787,67728.0,67725.0,0.1]
[1718089490108,0.4777,67728.0,67725.0,0.1]
[1718089490332,0.4787,67728.0,67725.0,1.031601]
[1718089490565,0.00648794,67727.0,67725.0,0.1]
[1718089490815,0.00648794,67727.0,67726.0,0.180063]
[1718089491032,0.00648794,67727.0,67726.0,0.280063]
[1718089491707,0.00748794,67727.0,67726.0,0.280063]
[1718089492125,0.00748794,67727.0,67726.0,0.1]
[1718089492359,0.3112,67726.0,67725.0,0.009]
[1718089492574,0.3112,67726.0,67712.0,0.01088672]
[1718089492799,0.07215996,67725.0,67713.0,0.16738906]
[1718089493009,0.07215996,67725.0,67714.0,0.12306913]
[1718089493216,0.00709483,67724.0,67714.0,0.24431993]
[1718089493422,0.00709483,67724.0,67715.0,2.303635]
[1718089493638,0.00709483,67724.0,67716.0,0.1]
[1718089494114,0.3112,67726.0,67716.0,2.572757]
[1718089494362,0.00809588,67725.0,67716.0,2.422757]
[1718089494589,0.08025584,67725.0,67717.0,0.904617]
[1718089494790,0.00809588,67725.0,67717.0,0.904617]
[1718089495047,0.00809588,67725.0,67718.0,0.10362953]
[1718089495261,0.001,67724.0,67719.0,0.07195983]
[1718089495536,0.00709379,67723.0,67720.0,0.07195983]
[1718089495761,0.00709379,67723.0,67721.0,0.07195983]
[1718089495974,0.001,67725.0,67722.0,0.07195983]
[1718089496192,0.001,67725.0,67723.0,0.07195983]
[1718089496415,0.001,67725.0,67724.0,0.07195983]
[1718089496622,0.001,67725.0,67724.0,0.17195983]
[1718089497068,0.29498211,67726.0,67724.0,0.31627976]
[1718089497316,0.29498211,67726.0,67725.0,0.07195983]
[1718089497549,0.29323054,67726.0,67725.0,0.17195983]
[1718089497799,0.29323054,67726.0,67725.0,1.07450883]
[1718089498024,0.29323054,67726.0,67725.0,0.99104183]
[1718089498669,0.28942966,67726.0,67725.0,0.99104183]
[1718089498882,0.28942966,67726.0,67725.0,0.94679183]
[1718089499100,0.29042966,67726.0,67725.0,0.18395983]
[1718089499318,0.28756898,67726.0,67725.0,0.18395983]
[1718089499544,0.28756898,67726.0,67725.0,0.95857383]
[1718089499756,0.28756898,67726.0,67725.0,0.93857383]
[1718089499965,0.28856898,67726.0,67725.0,0.86446683]
[1718089500376,0.28856898,67726.0,67725.0,0.76154785]
[1718089500604,0.28856898,67726.0,67725.0,0.21602885]
[1718089500605,0.31570301,67726.0,67725.0,0.21602885]
[1718089500827,0.31570301,67726.0,67725.0,0.19295983]
[1718089501033,0.31570301,67726.0,67725.0,0.09295983]
[1718089501251,0.31570301,67726.0,67725.0,0.19295983]
[1718089501986,0.29570301,67726.0,67725.0,0.19295983]
[1718089502203,0.31570301,67726.0,67725.0,0.19295983]
[1718089502406,0.51570301,67726.0,67725.0,0.09295983]
[1718089502822,1.00730301,67726.0,67725.0,0.09295983]
[1718089503252,1.00730301,67726.0,67718.0,0.1]
[1718089503253,1.0895,67719.0,67718.0,0.1]
[1718089503472,0.9895,67718.0,67717.0,0.01780429]
[1718089503690,0.02,67713.0,67711.0,0.1]
[1718089503893,0.02,67713.0,67712.0,0.03396128]
[1718089503894,0.99952043,67713.0,67712.0,0.03396128]
[1718089504103,0.99952043,67713.0,67712.0,0.01088672]
[1718089504307,0.1,67709.0,67693.0,0.4718]
[1718089504550,0.7797152,67708.0,67695.0,0.04901187]
[1718089504750,0.7797152,67708.0,67695.0,0.1933318]
[1718089504977,0.7797152,67708.0,67696.0,1.03032146]
[1718089505188,0.7797152,67708.0,67697.0,0.02307646]
[1718089505415,0.02,67706.0,67697.0,1.02829846]
[1718089505646,0.02,67706.0,67698.0,0.02307646]
[1718089505849,0.09914156,67705.0,67698.0,0.29102546]
[1718089506055,0.312,67700.0,67699.0,0.02307646]
[1718089506473,0.312,67700.0,67693.0,0.04471591]
[1718089506474,0.31895734,67700.0,67697.0,0.004]
[1718089506680,0.31895734,67700.0,67698.0,0.02307646]
[1718089506915,0.00695734,67700.0,67699.0,0.02307646]
[1718089507132,0.00695734,67700.0,67699.0,0.12307646]
[1718089507359,0.4706,67705.0,67699.0,1.77367546]
[1718089507601,0.4706,67705.0,67700.0,0.1]
[1718089507809,0.4706,67705.0,67701.0,0.02307646]
[1718089508239,0.02,67702.0,67701.0,0.02307646]
[1718089508668,0.22,67702.0,67701.0,0.02307646]
[1718089508883,0.12,67699.0,67698.0,0.02307646]
[1718089509153,0.1,67699.0,67698.0,0.02307646]
[1718089509580,0.7808,67699.0,67698.0,0.02307646]
[1718089509826,0.7808,67699.0,67697.0,0.000946]
[1718089509827,0.5449,67698.0,67697.0,0.000946]
[1718089510043,0.3249,67698.0,67697.0,0.000946]
[1718089510265,0.5449,67698.0,67697.0,0.000946]
[1718089510471,0.61705996,67698.0,67697.0,0.000946]
[1718089510691,1.07527989,67698.0,67697.0,0.000946]
[1718089510905,0.8636,67687.0,67686.0,0.04387307]
[1718089511116,0.8636,67687.0,67686.0,0.02308282]
[1718089511335,0.8636,67687.0,67679.0,0.06156182]
[1718089511545,0.8636,67687.0,67680.0,0.02308312]
[1718089511771,0.8836,67687.0,67680.0,0.32808312]
[1718089512013,0.8636,67687.0,67681.0,0.02308312]
[1718089512240,0.4947,67698.0,67682.0,0.14602926]
[1718089512455,0.4947,67698.0,67682.0,0.30181993]
[1718089512456,0.4937,67698.0,67682.0,0.30181993]
[1718089512918,0.001,67687.0,67684.0,0.04402298]
[1718089513116,0.1,67697.0,67685.0,0.0851482]
[1718089513337,0.00682726,67696.0,67686.0,0.0851482]
[1718089513545,0.00682726,67696.0,67687.0,0.0851482]
[1718089513775,0.00682726,67696.0,67688.0,0.0620673]
[1718089513983,0.00682726,67696.0,67688.0,0.1620673]
[1718089514198,0.00682726,67696.0,67689.0,0.5125503]
[1718089514429,0.00682726,67696.0,67690.0,0.1620673]
[1718089514626,0.00782726,67696.0,67691.0,0.0620673]
[1718089515052,0.00682726,67696.0,67692.0,0.316823]
[1718089515272,0.00682726,67696.0,67693.0,0.0620673]
[1718089515478,0.00782726,67696.0,67693.0,0.1620673]
[1718089515676,0.00782726,67696.0,67694.0,0.0620673]
[1718089515879,0.00882726,67696.0,67694.0,0.1620673]
[1718089516105,0.00882726,67696.0,67695.0,0.0620673]
[1718089516344,0.00882726,67696.0,67695.0,0.1620673]
[1718089516859,0.00782726,67696.0,67695.0,0.1620673]
[1718089517241,0.00682726,67696.0,67695.0,0.1620673]
[1718089517639,0.00782726,67696.0,67695.0,0.1620673]
[1718089518263,0.22682726,67696.0,67695.0,0.1620673]
[1718089518485,0.22882726,67696.0,67695.0,0.1650673]
[1718089518689,0.22782726,67696.0,67695.0,0.103]
[1718089519101,0.22882726,67696.0,67695.0,0.008]
[1718089519308,0.22882726,67696.0,67695.0,0.108]
[1718089520420,0.22882726,67696.0,67695.0,0.008]
[1718089521489,1.19624719,67696.0,67695.0,0.008]
[1718089522802,1.18941993,67696.0,67695.0,0.008]
[1718089523252,0.1,67677.0,67676.0,0.04402298]
[1718089523466,0.1,67677.0,67676.0,0.11332881]
[1718089523683,0.1,67677.0,67676.0,0.06392665]
[1718089523896,0.1,67677.0,67670.0,0.06392665]
[1718089524127,0.07215996,67682.0,67671.0,0.06392665]
[1718089524388,0.07215996,67682.0,67672.0,0.06392665]
[1718089524594,0.07215996,67682.0,67673.0,0.06392665]
[1718089524824,0.07215996,67682.0,67674.0,0.06392665]
[1718089525046,0.07215996,67682.0,67675.0,0.06392665]
[1718089525280,0.001,67677.0,67676.0,0.06392665]
[1718089525460,0.001,67677.0,67676.0,0.58988265]
[1718089525662,0.001,67677.0,67676.0,0.37575165]
[1718089526120,0.07215996,67682.0,67676.0,0.37575165]
[1718089526345,0.07215996,67682.0,67677.0,0.06392665]
[1718089526560,0.07315996,67682.0,67677.0,0.16392665]
[1718089526816,0.07315996,67682.0,67678.0,0.06392665]
[1718089527026,0.07215996,67682.0,67678.0,0.16392665]
[1718089527239,0.07215996,67682.0,67679.0,0.06392665]
[1718089527459,0.07215996,67682.0,67679.0,0.16392665]
[1718089527839,0.07215996,67682.0,67680.0,0.06392665]
[1718089528058,0.07215996,67682.0,67680.0,0.16392665]
[1718089528224,0.07215996,67682.0,67681.0,0.06392665]
[1718089528610,0.07215996,67682.0,67681.0,0.16392665]
[1718089529235,0.001,67682.0,67681.0,0.16392665]
[1718089529459,0.4754,67687.0,67681.0,0.16392665]
[1718089529678,0.31640001,67688.0,67682.0,0.16392665]
[1718089529890,0.31640001,67688.0,67677.0,0.1]
[1718089529891,0.31640001,67688.0,67683.0,0.06392665]
[1718089530076,0.31640001,67688.0,67684.0,0.06392665]
[1718089530319,0.31640001,67688.0,67685.0,0.06392665]
[1718089530538,0.31640001,67688.0,67686.0,0.06392665]
[1718089530763,0.31640001,67688.0,67686.0,0.16392665]
[1718089530978,0.31640001,67688.0,67687.0,0.06392665]
[1718089531205,0.31640001,67688.0,67687.0,0.16392665]
[1718089531429,0.3212405,67688.0,67687.0,0.16392665]